Workbook

Sheet Estimate
C2: SAMPLE - JOB QUOTE FOR HOUSE EXTENSION | L2: Ian Linnegan Mob 07973 330324 | P2: website
A6: PRELIMS | F6: TENDER SUMMARY: | I6: £
F7: 1 | G7: PRELIMS | I7: =C68 -> 5919 | K7: Notes
A8: 1 | B8: GENERAL | C8: 480 | F8: 2 | G8: SPECIFICATION | I8: =C20 -> 610 | K8: 1 | L8: ONLY mark or update the items on the sheet shown in yellow
A9: 2 | B9: PROTECT | C9: 350 | F9: 3 | G9: WORK ITEMS | I9: =C70 -> 37936.8 | K9: 2 | L9: Adjust wage rates/markup links on the second worksheet - adjust as required
A10: 3 | B10: RUBBISH | C10: 1500 | F10: CONTRACT SUM | I10: =SUM(I7:I9) -> 44465.8 | K10: 3 | L10: Add other items in the work column as required
A11: 4 | B11: PLANT | C11: 1900 | K11: 4 | L11: Grey areas will be automatically filled as data is entered (do not enter figures here)
A12: 5 | B12: SCAFFOLD | C12: 1200 | F12: PROFIT ESTIMATE (see analysis below) £ | I12: =Q64 -> 6322.8
A13: 6 | B13: OTHER | C13: 489
A14: SUB TOTAL | C14: =SUM(C8:C13) -> 5919
A16: SPECIFICATION
A17: 1 | B17: GENERAL | C17: 0
A18: 2 | B18: DAYWORK | C18: 160
A19: 3 | B19: PROV SUM (if any) | C19: 450
A20: TOTAL | C20: =SUM(C17:C19) -> 610
M21: ANALYSYS
A22: WORK ITEMS (see list below) | C22: =C64 -> 37936.8
N24: LAB + MAT
A25: WORK ITEMS | E25: CARPENTER | F25: BRICKLAYER | G25: PLASTERER | H25: LABOURER | I25: PAINTER | J25: OTHER | K25: MATERIALS | L25: SUBC | M25: LABOUR | N25: & SUB | O25: MARK UP | P25: TENDER | Q25: PROFIT
E26: Enter the number of days below | K26: Enter Totals
A27: =A26+1 -> 1 | B27: Foundations | C27: =P27 -> 3454.8 | E27: 16 | F27: 2 | G27: 4 | K27: 1569 | L27: 200 | M27: =(E27*Rates!C$8)+(F27*Rates!C$9)+(G27*Rates!C$10)+(H27*Rates!C$11)+(I27*Rates!C$12)+(J27*Rates!C$13) -> 1110 | N27: =SUM(K27:M27) -> 2879 | O27: =Rates!$C$4 -> 20 | P27: =(100+O27)%*N27 -> 3454.8 | Q27: =P27-N27 -> 575.8
A28: 2 | B28: Blockwork to DPC | C28: =P28 -> 2718 | E28: 18 | G28: 10 | K28: 805 | M28: =(E28*Rates!C$8)+(F28*Rates!C$9)+(G28*Rates!C$10)+(H28*Rates!C$11)+(I28*Rates!C$12)+(J28*Rates!C$13) -> 1460 | N28: =SUM(K28:M28) -> 2265 | O28: =Rates!$C$4 -> 20 | P28: 2718 | Q28: 453
A29: 3 | B29: Drainage | C29: 4005.6 | F29: 20 | H29: 10 | K29: 1388 | M29: =(E29*Rates!C$8)+(F29*Rates!C$9)+(G29*Rates!C$10)+(H29*Rates!C$11)+(I29*Rates!C$12)+(J29*Rates!C$13) -> 1950 | N29: 3338 | O29: =Rates!$C$4 -> 20 | P29: 4005.6 | Q29: 667.6
A30: 4 | B30: Oversite | C30: 2449.2 | E30: 4 | F30: 2 | I30: 5 | K30: 1456 | M30: =(E30*Rates!C$8)+(F30*Rates!C$9)+(G30*Rates!C$10)+(H30*Rates!C$11)+(I30*Rates!C$12)+(J30*Rates!C$13) -> 585 | N30: 2041 | O30: =Rates!$C$4 -> 20 | P30: 2449.2 | Q30: 408.2
A31: 5 | B31: External walls brickwork | C31: 7473.6 | E31: 34 | G31: 34 | K31: 2488 | M31: =(E31*Rates!C$8)+(F31*Rates!C$9)+(G31*Rates!C$10)+(H31*Rates!C$11)+(I31*Rates!C$12)+(J31*Rates!C$13) -> 3740 | N31: 6228 | O31: =Rates!$C$4 -> 20 | P31: 7473.6 | Q31: 1245.6
A32: 6 | B32: Windows | C32: 3726 | F32: 5 | K32: 2780 | M32: =(E32*Rates!C$8)+(F32*Rates!C$9)+(G32*Rates!C$10)+(H32*Rates!C$11)+(I32*Rates!C$12)+(J32*Rates!C$13) -> 325 | N32: 3105 | O32: =Rates!$C$4 -> 20 | P32: 3726 | Q32: 621
A33: 7 | B33: Rendering | C33: 1651.2 | E33: 4 | H33: 4 | K33: 936 | M33: =(E33*Rates!C$8)+(F33*Rates!C$9)+(G33*Rates!C$10)+(H33*Rates!C$11)+(I33*Rates!C$12)+(J33*Rates!C$13) -> 440 | N33: 1376 | O33: =Rates!$C$4 -> 20 | P33: 1651.2 | Q33: 275.2
A34: 8 | B34: Roof | C34: 4210.8 | G34: 5 | J34: 4 | K34: 2884 | M34: =(E34*Rates!C$8)+(F34*Rates!C$9)+(G34*Rates!C$10)+(H34*Rates!C$11)+(I34*Rates!C$12)+(J34*Rates!C$13) -> 625 | N34: 3509 | O34: =Rates!$C$4 -> 20 | P34: 4210.8 | Q34: 701.8
A35: =A34+1 -> 9 | B35: First Fix Electrical | C35: 748.8 | H35: 6 | K35: 234 | M35: =(E35*Rates!C$8)+(F35*Rates!C$9)+(G35*Rates!C$10)+(H35*Rates!C$11)+(I35*Rates!C$12)+(J35*Rates!C$13) -> 390 | N35: 624 | O35: =Rates!$C$4 -> 20 | P35: 748.8 | Q35: 124.8
A36: 10 | B36: Plastering | C36: 1609.2 | E36: 4 | F36: 5 | K36: 836 | M36: =(E36*Rates!C$8)+(F36*Rates!C$9)+(G36*Rates!C$10)+(H36*Rates!C$11)+(I36*Rates!C$12)+(J36*Rates!C$13) -> 505 | N36: 1341 | O36: =Rates!$C$4 -> 20 | P36: 1609.2 | Q36: 268.2
A37: 11 | B37: Second fix electrical | C37: 895.2 | J37: 4 | K37: 446 | M37: =(E37*Rates!C$8)+(F37*Rates!C$9)+(G37*Rates!C$10)+(H37*Rates!C$11)+(I37*Rates!C$12)+(J37*Rates!C$13) -> 300 | N37: 746 | O37: =Rates!$C$4 -> 20 | P37: 895.2 | Q37: 149.2
A38: 12 | B38: First Fix Plumbing | C38: 1359.6 | H38: 6 | K38: 743 | M38: =(E38*Rates!C$8)+(F38*Rates!C$9)+(G38*Rates!C$10)+(H38*Rates!C$11)+(I38*Rates!C$12)+(J38*Rates!C$13) -> 390 | N38: 1133 | O38: =Rates!$C$4 -> 20 | P38: 1359.6 | Q38: 226.6
A39: 13 | B39: Second fix plumbing | C39: 2548.8 | H39: 5 | I39: 1 | K39: 1744 | M39: =(E39*Rates!C$8)+(F39*Rates!C$9)+(G39*Rates!C$10)+(H39*Rates!C$11)+(I39*Rates!C$12)+(J39*Rates!C$13) -> 380 | N39: 2124 | O39: =Rates!$C$4 -> 20 | P39: 2548.8 | Q39: 424.8
A40: 14 | B40: Kitchen fit out | C40: 1086 | E40: 2 | F40: 6 | H40: 3 | K40: 230 | M40: =(E40*Rates!C$8)+(F40*Rates!C$9)+(G40*Rates!C$10)+(H40*Rates!C$11)+(I40*Rates!C$12)+(J40*Rates!C$13) -> 675 | N40: 905 | O40: =Rates!$C$4 -> 20 | P40: 1086 | Q40: 181
A41: 15 | B41: Gas Oven | C41: 0 | M41: =(E41*Rates!C$8)+(F41*Rates!C$9)+(G41*Rates!C$10)+(H41*Rates!C$11)+(I41*Rates!C$12)+(J41*Rates!C$13) -> 0 | N41: 0 | O41: =Rates!$C$4 -> 20 | P41: 0 | Q41: 0
A42: 16 | C42: 0 | M42: =(E42*Rates!C$8)+(F42*Rates!C$9)+(G42*Rates!C$10)+(H42*Rates!C$11)+(I42*Rates!C$12)+(J42*Rates!C$13) -> 0 | N42: 0 | O42: =Rates!$C$4 -> 20 | P42: 0 | Q42: 0
A43: 17 | C43: 0 | M43: =(E43*Rates!C$8)+(F43*Rates!C$9)+(G43*Rates!C$10)+(H43*Rates!C$11)+(I43*Rates!C$12)+(J43*Rates!C$13) -> 0 | N43: 0 | O43: =Rates!$C$4 -> 20 | P43: 0 | Q43: 0
A44: =A43+1 -> 18 | C44: 0 | M44: =(E44*Rates!C$8)+(F44*Rates!C$9)+(G44*Rates!C$10)+(H44*Rates!C$11)+(I44*Rates!C$12)+(J44*Rates!C$13) -> 0 | N44: 0 | O44: =Rates!$C$4 -> 20 | P44: 0 | Q44: 0
A45: =A44+1 -> 19 | C45: 0 | M45: =(E45*Rates!C$8)+(F45*Rates!C$9)+(G45*Rates!C$10)+(H45*Rates!C$11)+(I45*Rates!C$12)+(J45*Rates!C$13) -> 0 | N45: 0 | O45: =Rates!$C$4 -> 20 | P45: 0 | Q45: 0
A46: =A45+1 -> 20 | C46: 0 | M46: =(E46*Rates!C$8)+(F46*Rates!C$9)+(G46*Rates!C$10)+(H46*Rates!C$11)+(I46*Rates!C$12)+(J46*Rates!C$13) -> 0 | N46: 0 | O46: =Rates!$C$4 -> 20 | P46: 0 | Q46: 0
A47: =A46+1 -> 21 | C47: 0 | M47: =(E47*Rates!C$8)+(F47*Rates!C$9)+(G47*Rates!C$10)+(H47*Rates!C$11)+(I47*Rates!C$12)+(J47*Rates!C$13) -> 0 | N47: 0 | O47: =Rates!$C$4 -> 20 | P47: 0 | Q47: 0
A48: 22 | C48: 0 | M48: =(E48*Rates!C$8)+(F48*Rates!C$9)+(G48*Rates!C$10)+(H48*Rates!C$11)+(I48*Rates!C$12)+(J48*Rates!C$13) -> 0 | N48: 0 | O48: =Rates!$C$4 -> 20 | P48: 0 | Q48: 0
A49: 23 | C49: 0 | M49: =(E49*Rates!C$8)+(F49*Rates!C$9)+(G49*Rates!C$10)+(H49*Rates!C$11)+(I49*Rates!C$12)+(J49*Rates!C$13) -> 0 | N49: 0 | O49: =Rates!$C$4 -> 20 | P49: 0 | Q49: 0
A50: 24 | C50: 0 | M50: =(E50*Rates!C$8)+(F50*Rates!C$9)+(G50*Rates!C$10)+(H50*Rates!C$11)+(I50*Rates!C$12)+(J50*Rates!C$13) -> 0 | N50: 0 | O50: =Rates!$C$4 -> 20 | P50: 0 | Q50: 0
A51: 25 | C51: 0 | M51: =(E51*Rates!C$8)+(F51*Rates!C$9)+(G51*Rates!C$10)+(H51*Rates!C$11)+(I51*Rates!C$12)+(J51*Rates!C$13) -> 0 | N51: 0 | O51: =Rates!$C$4 -> 20 | P51: 0 | Q51: 0
A52: 26 | C52: =P52 -> 0 | M52: =(E52*Rates!C$8)+(F52*Rates!C$9)+(G52*Rates!C$10)+(H52*Rates!C$11)+(I52*Rates!C$12)+(J52*Rates!C$13) -> 0 | N52: 0 | O52: =Rates!$C$4 -> 20 | P52: 0 | Q52: 0
A53: 27 | C53: 0 | M53: =(E53*Rates!C$8)+(F53*Rates!C$9)+(G53*Rates!C$10)+(H53*Rates!C$11)+(I53*Rates!C$12)+(J53*Rates!C$13) -> 0 | N53: 0 | O53: =Rates!$C$4 -> 20 | P53: 0 | Q53: 0
A54: 28 | C54: 0 | M54: =(E54*Rates!C$8)+(F54*Rates!C$9)+(G54*Rates!C$10)+(H54*Rates!C$11)+(I54*Rates!C$12)+(J54*Rates!C$13) -> 0 | N54: 0 | O54: =Rates!$C$4 -> 20 | P54: 0 | Q54: 0
A55: 29 | C55: =P55 -> 0 | M55: =(E55*Rates!C$8)+(F55*Rates!C$9)+(G55*Rates!C$10)+(H55*Rates!C$11)+(I55*Rates!C$12)+(J55*Rates!C$13) -> 0 | N55: 0 | O55: =Rates!$C$4 -> 20 | P55: =(100+O55)%*N55 -> 0 | Q55: =P55-N55 -> 0
A56: 30 | C56: 0 | M56: =(E56*Rates!C$8)+(F56*Rates!C$9)+(G56*Rates!C$10)+(H56*Rates!C$11)+(I56*Rates!C$12)+(J56*Rates!C$13) -> 0 | N56: 0 | O56: =Rates!$C$4 -> 20 | P56: 0 | Q56: 0
C57: 0 | M57: =(E57*Rates!C$8)+(F57*Rates!C$9)+(G57*Rates!C$10)+(H57*Rates!C$11)+(I57*Rates!C$12)+(J57*Rates!C$13) -> 0 | N57: 0 | O57: =Rates!$C$4 -> 20 | P57: 0 | Q57: 0
C58: 0 | M58: =(E58*Rates!C$8)+(F58*Rates!C$9)+(G58*Rates!C$10)+(H58*Rates!C$11)+(I58*Rates!C$12)+(J58*Rates!C$13) -> 0 | N58: 0 | O58: =Rates!$C$4 -> 20 | P58: 0 | Q58: 0
C59: 0 | M59: =(E59*Rates!C$8)+(F59*Rates!C$9)+(G59*Rates!C$10)+(H59*Rates!C$11)+(I59*Rates!C$12)+(J59*Rates!C$13) -> 0 | N59: 0 | O59: =Rates!$C$4 -> 20 | P59: 0 | Q59: 0
C60: 0 | M60: =(E60*Rates!C$8)+(F60*Rates!C$9)+(G60*Rates!C$10)+(H60*Rates!C$11)+(I60*Rates!C$12)+(J60*Rates!C$13) -> 0 | N60: 0 | O60: =Rates!$C$4 -> 20 | P60: 0 | Q60: 0
C61: 0 | M61: =(E61*Rates!C$8)+(F61*Rates!C$9)+(G61*Rates!C$10)+(H61*Rates!C$11)+(I61*Rates!C$12)+(J61*Rates!C$13) -> 0 | N61: 0 | O61: =Rates!$C$4 -> 20 | P61: 0 | Q61: 0
C62: 0 | M62: =(E62*Rates!C$8)+(F62*Rates!C$9)+(G62*Rates!C$10)+(H62*Rates!C$11)+(I62*Rates!C$12)+(J62*Rates!C$13) -> 0 | N62: 0 | O62: =Rates!$C$4 -> 20 | P62: 0 | Q62: 0
D63: Total hours | E63: =SUM(E26:E54) -> 82 | F63: 40 | G63: 53 | H63: 34 | I63: 6 | J63: 8
A64: TOTAL | C64: =SUM(C26:C54) -> 37936.8 | D64: Total £ | E64: =K78 -> 3690 | F64: =K79 -> 2600 | G64: =K80 -> 3445 | H64: =K81 -> 2210 | I64: =K82 -> 330 | J64: =K83 -> 600 | K64: 18539 | L64: =SUM(L27:L62) -> 200 | M64: =SUM(M27:M63) -> 12875 | N64: =SUM(N27:N63) -> 31614 | P64: =SUM(P26:P54) -> 37936.8 | Q64: =SUM(Q26:Q54) -> 6322.8
A67: TENDER SUMMARY:
A68: 1 | B68: PRELIMS | C68: =C14 -> 5919
A69: 2 | B69: SPECIFICATION | C69: =C20 -> 610
A70: 3 | B70: WORK ITEMS | C70: =SUM(P26:P54) -> 37936.8
A72: CONTRACT SUM | C72: =SUM(C68:C70) -> 44465.8
A75: ANALYSIS SUMMARY | I75: LABOUR TOTAL COSTS
I76: Total Hours | K76: =SUM(E63:J63) -> 223
B77: DAY RATE LABOUR | C77: =SUM(K78:K83) -> 12875
B78: SUBCONTRACT | C78: =L64 -> 200 | I78: CARPENTER | K78: =E63*Rates!C8 -> 3690
B79: MATERIALS | C79: =K64 -> 18539 | I79: BRICKLAYER | K79: =F63*Rates!C9 -> 2600
B80: TOTAL PROFIT | C80: =Q64 -> 6322.8 | I80: PLASTERER | K80: =G63*Rates!C10 -> 3445
B81: PRELIMS | C81: =C14+C20 -> 6529 | I81: LABOURER | K81: =H63*Rates!C11 -> 2210
B82: SPEC | C82: =C20 -> 610 | I82: PAINTER | K82: =I63*Rates!C12 -> 330
I83: OTHER | K83: =J63*Rates!C13 -> 600
K84: =SUM(K78:K83) -> 12875

Sheet Rates
A2: MARKUP
B4: % | C4: 20
A6: LABOUR RATES
B8: CARPENTER | C8: 45
B9: BRICKLAYER | C9: 65
B10: PLASTERER | C10: 65
B11: LABOURER | C11: 65
B12: PAINTER | C12: 55
B13: OTHER | C13: 75
B16: Tender | C16: =Estimate!I10 -> 44465.8
B18: Profit | C18: =Estimate!Q64 -> 6322.8
